fUSD/lending_fUSD_20240526
["ID","MTS","AMOUNT","RATE_DAILY","PERIOD"]
[327981651,1716736235228,-410.10992495,0.0001299,2]
[327981652,1716736235237,-410.10992495,0.0001299,2]
[327981653,1716736235247,-410.10992495,0.0001299,2]
[327981654,1716736235256,-410.10992495,0.0001299,2]
[327981655,1716736235265,-410.10992495,0.0001299,2]
[327981656,1716736235275,-410.10992495,0.0001299,2]
[327981657,1716736235284,-410.10992495,0.0001299,2]
[327981658,1716736235293,-410.10992495,0.0001299,2]
[327981659,1716736235302,-410.10992495,0.0001299,2]
[327981660,1716736235312,-410.10992495,0.0001299,2]
[327981661,1716736235322,-410.10992495,0.0001299,2]
[327981662,1716736235331,-410.10992495,0.0001299,2]
[327981663,1716736235341,-410.10992495,0.0001299,2]
[327981664,1716736235351,-410.10992495,0.0001299,2]
[327981665,1716736235361,-410.10992495,0.0001299,2]
[327981666,1716736235371,-410.10992495,0.0001299,2]
[327981667,1716736235380,-166.15748898,0.0001299,2]
[327981668,1716736235390,-151.46,0.0001299,2]
[327981669,1716736235399,-151.46,0.0001299,2]
[327981670,1716736235409,-240.94532388,0.00012998,2]
[327981671,1716736235419,-155.3047756,0.00012998,2]
[327981672,1716736235428,-1215.42910242,0.00012998,2]
[327981673,1716736235438,-2364.2726144,0.00012998,2]
[327981674,1716736235447,-657.03192757,0.00012998,2]
[327981675,1716736235456,-883.0724361,0.00012998,2]
[327981676,1716736235467,-1000.0,0.00012999,2]
[327981677,1716736235477,-217.18864147,0.00012999,2]
[327981678,1716736235486,-4429.30182559,0.00012999,2]
[327981679,1716736235495,-284.88137888,0.00012999,2]
[327981680,1716736235505,-199.8482483,0.00012999,2]
[327981681,1716736235514,-87776.17864624,0.00013,2]
[327981682,1716736235527,-2657.2665935,0.00013,2]
[327981683,1716736235539,-1145649.33941159,0.00013,2]
[327981684,1716736235550,-6329.55979309,0.00013,2]
[327981685,1716736235562,-1075.9549519,0.00013,2]
[327981686,1716736235606,-0.00267427,0.00013,2]
[327981687,1716736235617,-259.94301548,0.00013,2]
[327981688,1716736235630,-7876.43527198,0.00013,2]
[327981689,1716736235646,-674.44896287,0.00013,2]
[327981690,1716736235657,-6099.82610271,0.00013,2]
[327981691,1716736235683,-9791.23759092,0.00013,2]
[327981692,1716736235695,-1445.22698625,0.00013,2]
[327981727,1716736239315,-769.96443153,0.000129,2]
[327981728,1716736239328,-355.40532105,0.000129,2]
[327981729,1716736239338,-355855.33250808,0.00013,2]
[327981730,1716736239350,-1641.02539894,0.00013,2]
[327981731,1716736239532,-53582.87989015,0.00013,2]
[327981732,1716736239544,-13350.59082868,0.00013,2]
[327981733,1716736239556,-22471.96126673,0.00013,2]
[327981734,1716736239568,-307.40360557,0.00013,2]
[327981735,1716736239580,-4286.97422142,0.00013,2]
[327981736,1716736239592,-869.99406388,0.00013,2]
[327981737,1716736239607,-311.184893,0.00013,2]
[327981738,1716736239619,-2655.39608266,0.00013,2]
[327981739,1716736239630,-523.55681014,0.00013,2]
[327981740,1716736239647,-3530.20091552,0.00013,2]
[327981747,1716736240192,82.33787263,0.00011113,2]
[327981748,1716736240214,200.0,0.00011113,2]
[327981749,1716736240239,18.99873372,0.00011113,2]
[327981752,1716736241029,-108.74552102,0.00011113,2]
[327981753,1716736241039,-419.78137908,0.00013,2]
[327981754,1716736241051,-1091.98924764,0.00013,2]
[327981755,1716736241063,-1735.39342433,0.00013,2]
[327981756,1716736241074,-5818.88599103,0.00013,2]
[327981757,1716736242044,-335.03925666,0.000129,2]
[327981758,1716736242054,-417.33135531,0.0001299,2]
[327981759,1716736242063,-417.33135531,0.0001299,2]
[327981760,1716736242073,-417.33135531,0.0001299,2]
[327981761,1716736242082,-192.24942514,0.00013,2]
[327981762,1716736242093,-322.78663802,0.00013,2]
[327981763,1716736242105,-1677.4,0.00013,2]
[327981764,1716736242116,-397.63098387,0.00013,2]
[327981765,1716736242226,-18107.61818569,0.00013,2]
[327981766,1716736242237,-1096.04159675,0.00013,2]
[327981767,1716736242249,-396.34021756,0.00013,2]
[327981782,1716736243024,-4306.98937151,0.00013,2]
[327981790,1716736243170,-256.03418594,0.00013,2]
[327981791,1716736243987,-1922296.59127775,0.00013,2]
[327981792,1716736244004,-6937.9,0.00013,2]
[327981793,1716736244018,-323.26450674,0.00013,2]
[327981794,1716736244030,-31324.06127782,0.00013,2]
[327981796,1716736244042,-3369.65,0.00013,2]
[327981797,1716736244055,-1750.08934919,0.00013,2]
[327981798,1716736244067,-746.60009089,0.00013,2]
[327981799,1716736244079,-443.07349567,0.00013,2]
[327981800,1716736244555,-688.56235155,0.00013,2]
[327981801,1716736244568,-174334.22886524,0.00013,2]
[327981802,1716736244581,-6072.28939998,0.00013,2]
[327981803,1716736244592,-839.10109103,0.00013,2]
[327981804,1716736244605,-879.96203973,0.00013,2]
[327981813,1716736245960,-769.11225784,0.00013,2]
[327981814,1716736245973,-2017.62724224,0.00013,2]
[327981815,1716736245985,-440.74979347,0.00013,2]
[327981816,1716736245996,-466.70474391,0.00013,2]
[327981817,1716736246009,-573.43013765,0.00013,2]
[327981818,1716736246418,-40964.10477451,0.00013,2]
[327981819,1716736246430,-31715.73820004,0.00013,2]
[327981820,1716736246441,-62013.51984336,0.00013,2]
[327981821,1716736246453,-263717.06058923,0.00013,2]
[327981822,1716736246465,-151007.81985352,0.00013,2]
[327981823,1716736246478,-3872.6,0.00013,2]
[327981824,1716736246490,-500.0,0.00013,2]
[327981825,1716736246502,-8246.39997353,0.00013,2]
[327981826,1716736246513,-426.68023054,0.00013,2]
[327981827,1716736246525,-3508.1022,0.00013,2]
[327981828,1716736246536,-1471.2205633,0.00013,2]
[327981829,1716736246548,-469.80294734,0.00013,2]
[327981837,1716736551826,1128.3,0.00010958,2]
[327981838,1716736551848,204.86126628,0.00010958,2]
[327981880,1716737432161,-268.02586426,0.00010855,2]
[327981881,1716737432171,-535.07981141,0.00010856,2]
[327981882,1716737432181,-505.4842332,0.00010856,2]
[327981883,1716737432190,-347.95,0.00010868,2]
[327981885,1716737432199,-4013.13276747,0.00010958,2]
[327981886,1716737432333,-351.85403494,0.00010958,2]
[327981887,1716737432343,-702.86595224,0.00010959,2]
[327981888,1716737432354,-102.64404776,0.00010959,2]
[327981889,1716737432364,-459.51588567,0.00012286,2]
[327981890,1716737432375,-214.28915533,0.00012286,2]
[327981891,1716737432385,-69.59066565,0.00012348,2]
[327981892,1716737432396,-1228.79953778,0.00012348,2]
[327981893,1716737432406,-150.0,0.00012395,2]
[327981894,1716737432415,-21643.57095997,0.00012396,2]
[327981895,1716737432426,-1209.45727771,0.00012396,2]
[327981896,1716737434078,-1046.97176232,0.00012396,2]
[327981897,1716737434088,-600.0,0.00012398,2]
[327981898,1716737434098,-299.99,0.00012398,2]
[327981899,1716737434108,-499.99,0.00012398,2]
[327981900,1716737434117,-250.0,0.00012439,2]
[327981901,1716737434127,-250.0,0.00012446,2]
[327981902,1716737434138,-150.0,0.00012446,2]
[327981903,1716737434147,-293.91,0.00012446,2]
[327981904,1716737434157,-612.99,0.00012446,2]
[327981905,1716737434166,-1172.82,0.0001254,2]
[327981906,1716737434175,-837.44773286,0.000128,2]
[327981907,1716737434185,-326.34299551,0.0001289,2]
[327981908,1716737434195,-1002.80185968,0.00012899,2]
[327981909,1716737434204,-3510.5234,0.000129,2]
[327981910,1716737434213,-7046.0499,0.000129,2]
[327981911,1716737434223,-395.4755,0.000129,2]
[327981912,1716737434233,-174.2913,0.000129,2]
[327981913,1716737434243,-14631.9498,0.000129,2]
[327981914,1716737434252,-1000.0,0.000129,2]
[327981915,1716737434262,-1237.19639054,0.000129,2]
[327981916,1716737434271,-1000.0,0.000129,2]
[327981917,1716737434281,-4110.5693,0.000129,2]
[327981918,1716737434293,-659.5783,0.000129,2]
[327981919,1716737434303,-500.0,0.000129,2]
[327981920,1716737434312,-2151.5455,0.000129,2]
[327981921,1716737434321,-86213.41145362,0.000129,2]
[327981922,1716737434332,-616.59989011,0.000129,2]
[327981923,1716737434346,-599.46000008,0.000129,2]
[327981924,1716737434358,-1024.43638854,0.000129,2]
[327981925,1716737434369,-77058.184875,0.000129,2]
[327981926,1716737434381,-700.67700589,0.000129,2]
[327981927,1716737434392,-342.09282,0.000129,2]
[327981930,1716737438435,-6512.96046108,0.000129,2]
[327981931,1716737438447,-37617.7218653,0.000129,2]
[327981932,1716737438460,-34314.45524038,0.000129,2]
[327981933,1716737438469,-32830.14475391,0.000129,2]
[327981934,1716737438481,-544.49802541,0.000129,2]
[327981935,1716737438493,-8227.0022,0.000129,2]
[327981936,1716737438504,-427.20419193,0.000129,2]
[327981937,1716737438606,-6147.29057945,0.000129,2]
[327981941,1716737438618,-1222.02031038,0.000129,2]
[327982027,1716737441139,-50601.83993892,0.000129,2]
[327982028,1716737441149,-168.89638496,0.000129,2]
[327982029,1716737441159,-1509.92668197,0.000129,2]
[327982030,1716737441168,-201.26118106,0.0001299,2]
[327982031,1716737441177,-151.46,0.0001299,2]
[327982032,1716737441187,-2359.22754053,0.00012998,2]
[327982033,1716737441197,-660.37168987,0.00012998,2]
[327982034,1716737441206,-1216.20074594,0.00012998,2]
[327982035,1716737441215,-489.24399676,0.00012999,2]
[327982036,1716737441225,-136617.53912729,0.00013,2]
[327982037,1716737441237,-3106.43771268,0.00013,2]
[327982038,1716737441248,-136401.97147868,0.00013,2]
[327982039,1716737441260,-1929.41412912,0.00013,2]
[327982040,1716737441271,-1231.4651926,0.00013,2]
[327982041,1716737441282,-1318.73130131,0.00013,2]
[327982042,1716737441293,-670.44277466,0.00013,2]
[327982043,1716737441945,-3755.125,0.00013,2]
[327982048,1716737443827,-1132.78119145,0.00013,2]
[327982049,1716737443899,-6044.14409262,0.00013,2]
[327982052,1716737443911,-6077.98951368,0.00013,2]
[327982054,1716737443931,-762.5,0.00013,2]
[327982066,1716737444132,-424410.2519228,0.00013,2]
[327982067,1716737444143,-423249.74803769,0.00013,2]
[327982068,1716737444544,-679.98,0.00013,2]
[327982069,1716737444557,-831.48450349,0.00013,2]
[327982070,1716737444576,-2353.71090811,0.00013,2]
[327982071,1716737444588,-1602.24068475,0.00013,2]
[327982072,1716737444600,-929.21386332,0.00013,2]
[327982073,1716737444612,-993.56644484,0.00013,2]
[327982075,1716737444896,-537.40276,0.00013,2]
[327982079,1716737446341,-535.07981141,0.00012999,2]
[327982081,1716737446350,-155.0,0.00012999,2]
[327982082,1716737446359,-163.87350341,0.00012999,2]
[327982083,1716737446371,-153.73159589,0.00012999,2]
[327982084,1716737446380,-517.11840411,0.00013,2]
[327982096,1716738264879,-505.4842332,0.0001167,2]
[327982097,1716738264902,-373.46,0.00011671,2]
[327982098,1716738292544,354.78,0.00010818,2]
[327982104,1716738381640,956.17943807,0.00010277,2]
[327982106,1716738401625,956.17943807,0.00010277,2]
[327982107,1716738408202,-900.26,0.00012479,2]
[327982108,1716738408228,-250.0,0.00012577,2]
[327982109,1716738408251,-150.0,0.00012634,2]
[327982110,1716738408275,-8749.48,0.00012635,2]
[327982111,1716738419646,250.0,9.763e-05,2]
[327982112,1716738419668,706.17943807,9.763e-05,2]
[327982113,1716738424272,194.08056193,0.00010277,2]
[327982114,1716738424294,853.91689066,0.00010277,2]
[327982115,1716738424316,4000.0,0.00010277,2]
[327982116,1716738424337,4000.0,0.00010277,2]
[327982117,1716738424357,4000.0,0.00010277,2]
[327982118,1716738424380,4000.0,0.00010277,2]
[327982119,1716738424400,3181.28430241,0.00010277,2]
[327982120,1716738426413,289.33910277,0.00010277,2]
[327982121,1716738427075,529.37659482,0.00010277,2]
[327982122,1716738427101,4000.0,0.00010277,2]
[327982126,1716738518710,-155.0,9.762e-05,2]
[327982127,1716738518733,-801.17943807,9.763e-05,2]
[327982128,1716738518786,-155.0,9.763e-05,2]
[327982129,1716738518808,-150.0,0.00010276,2]
[327982130,1716738518830,-2992.62198662,0.00010277,2]
[327982131,1716738518851,-362.3044121,0.00010277,2]
[327982132,1716738518876,-14633.89416321,0.00010277,2]
[327982240,1716738632333,-956.39580577,9.763e-05,2]
[327982242,1716738632342,-438.93567769,0.00010225,2]
[327982244,1716738632353,-1228.23301131,0.00010225,2]
[327982245,1716738632366,-5595.38759179,0.00010277,2]
[327982247,1716738632377,-289.33910277,0.00010277,2]
[327982250,1716738632387,-945.95035056,0.00010277,2]
[327982252,1716738632396,-3088.86009093,0.00010277,2]
[327982254,1716738632407,-592.31,0.00010277,2]
[327982256,1716738632418,-3842.31921051,0.00010277,2]
[327982257,1716738632428,-362.38046027,0.00010277,2]
[327982258,1716738632438,-210.0,0.00011304,2]
[327982259,1716738632447,-250.0,0.00012229,2]
[327982260,1716738632456,-5928.89936848,0.00012635,2]
[327982261,1716738632468,-2285.28216049,0.00012635,2]
[327982262,1716738632479,-1064.71783951,0.00012635,2]
[327982263,1716738632491,-584.49,0.00012635,2]
[327982264,1716738632502,-345.0,0.00012635,2]
[327982265,1716738634137,-3512.33674985,0.00012635,2]
[327982266,1716738634241,-1429.79388167,0.00012635,2]
[327982267,1716738634250,-171.3,0.00012646,2]
[327982268,1716738634260,-938.36,0.00012654,2]
[327982269,1716738634269,-1206.51,0.00012676,2]
[327982270,1716738634282,-480.0,0.00012686,2]
[327982271,1716738634293,-8702.03612151,0.0001279,2]
[327982272,1716738634306,-899.47854748,0.0001279,2]
[327982273,1716738634322,-287.68,0.0001279,2]
[327982274,1716738634331,-499.99,0.0001279,2]
[327982275,1716738634340,-8369.60399517,0.000128,2]
[327982276,1716738634351,-598.11050968,0.000128,2]
[327982306,1716738638353,-17214.32549515,0.000128,2]
[327982307,1716738638364,-1000.0,0.000128,2]
[327982308,1716738638374,-401.6954,0.000128,2]
[327982309,1716738638384,-528.8047,0.000128,2]
[327982310,1716738638393,-273.53933692,0.00012869,2]
[327982311,1716738638404,-3000.0,0.0001287,2]
[327982312,1716738638413,-571.27359291,0.00012898,2]
[327982313,1716738638422,-311.15329879,0.00012898,2]
[327982314,1716738638432,-187.14032102,0.00012898,2]
[327982315,1716738638441,-663.00471014,0.00012899,2]
[327982316,1716738638451,-44196.0142013,0.000129,2]
[327982317,1716738638483,-5011.6,0.000129,2]
[327982318,1716738638569,-68663.47816687,0.000129,2]
[327982319,1716738638660,-3863.4679224,0.000129,2]
[327982320,1716738638672,-5216.0,0.000129,2]
[327982321,1716738638688,-1996.22594483,0.000129,2]
[327982326,1716738642452,-77051.5,0.000129,2]
[327982327,1716738642463,-2263.88315522,0.000129,2]
[327982328,1716738642474,-884.29427894,0.000129,2]
[327982329,1716738642485,-345.1849985,0.000129,2]
[327982330,1716738642496,-1047.27363194,0.000129,2]
[327982331,1716738642505,-429.38043286,0.000129,2]
[327982332,1716738642516,-3836.09584414,0.000129,2]
[327982333,1716738642524,-769.96644318,0.000129,2]
[327982334,1716738642536,-364.13024824,0.000129,2]
[327982335,1716738642544,-1321.18584675,0.000129,2]
[327982336,1716738642553,-326.34299551,0.000129,2]
[327982337,1716738642565,-1917.01978202,0.0001295,2]
[327982338,1716738642576,-1680.37619246,0.0001295,2]
[327982339,1716738642585,-197.87473694,0.0001295,2]
[327982340,1716738642594,-150.57,0.0001299,2]
[327982341,1716738642603,-150.57,0.0001299,2]
[327982342,1716738642611,-42.696416,0.0001299,2]
[327982343,1716738642622,-107.873584,0.0001299,2]
[327982344,1716738642631,-150.57,0.0001299,2]
[327982345,1716738642640,-266.22124095,0.00012998,2]
[327982346,1716738642649,-158.52697933,0.00012999,2]
[327982347,1716738642658,-363.25584455,0.00012999,2]
[327982348,1716738642667,-150.99,0.00012999,2]
[327982349,1716738642675,-173.64356853,0.00012999,2]
[327982350,1716738642684,-1129.66694049,0.00012999,2]
[327982351,1716738642694,-38586.56516976,0.00013,2]
[327982352,1716738642705,-331029.19999987,0.00013,2]
[327982353,1716738642979,-21786.0,0.00013,2]
[327982364,1716738643477,-8463.75269124,0.00013,2]
[327982376,1716738644782,-466005.73595283,0.00013,2]
[327982377,1716738644793,-269.71409072,0.00013,2]
[327982378,1716738644803,-2294149.34151217,0.00013,2]
[327982379,1716738644815,-383.48999995,0.00013,2]
[327982380,1716738644828,-25561.91,0.00013,2]
[327982381,1716738644840,-67972.35651119,0.00013,2]
[327982382,1716738644851,-1392.12514054,0.00013,2]
[327982383,1716738644864,-11992.80840709,0.00013,2]
[327982385,1716738644876,-49236.76695192,0.00013,2]
[327982387,1716738644888,-7706.15999992,0.00013,2]
[327982389,1716738644900,-34347.60486604,0.00013,2]
[327982464,1716738646413,-560.85470699,0.00010277,2]
[327982465,1716738646546,-2308.69407006,0.00010277,2]
[327982466,1716738646556,-5840.09458684,0.00010277,2]
[327982467,1716738646571,-1549.22803288,0.00010277,2]
[327982468,1716738646780,-646.19991858,0.00010277,2]
[327982505,1716738815357,-155.0,9.76e-05,2]
[327982506,1716738815379,-445.0,9.76e-05,2]
[327982511,1716739500374,157.19,8.754e-05,2]
[327982514,1716739598860,956.39580577,8.316e-05,2]
[327982515,1716739599504,362.38046027,8.754e-05,2]
[327982516,1716739607581,289.40104956,8.754e-05,2]
[327982517,1716739614791,720.90542255,8.316e-05,2]
[327982518,1716739615444,362.38046027,8.754e-05,2]
[327982519,1716739623510,289.40104956,8.754e-05,2]
[327982520,1716739633439,362.38046027,8.754e-05,2]
[327982613,1716739641517,289.40104956,8.754e-05,2]
[327982616,1716739657442,169.26204234,8.754e-05,2]
[327982617,1716739661540,289.40104956,8.754e-05,2]
[327982618,1716739677509,289.40104956,8.754e-05,2]
[327982619,1716739693510,307.00010073,8.754e-05,2]
[327982620,1716739693531,5.00249275,8.754e-05,2]
[327982621,1716739736784,-447.21719507,9.242e-05,2]
[327982622,1716739736810,-152.78280493,9.243e-05,2]
[327982623,1716739747219,4994.99750725,8.754e-05,2]
[327982624,1716739747243,2526.14300606,8.754e-05,2]
[327982625,1716739747443,362.26669991,8.754e-05,2]
[327982639,1716739751372,155.00000036,8.754e-05,2]
[327982640,1716739772254,155.0,8.754e-05,2]
[327982654,1716739777026,520.86951475,6.566e-05,2]
[327982656,1716739785288,259.61831255,8.754e-05,2]
[327982668,1716739806441,150.0,8.754e-05,2]
[327982669,1716739806783,150.0,8.754e-05,2]
[327982670,1716739807071,150.0,8.754e-05,2]
[327982671,1716739807246,150.0,8.754e-05,2]
[327982672,1716739807425,150.0,8.754e-05,2]
[327982674,1716739807594,150.0,8.754e-05,2]
[327982675,1716739807808,121.10246637,8.754e-05,2]
[327982676,1716739807829,28.89753363,8.754e-05,2]
[327982677,1716739808002,150.0,8.754e-05,2]
[327982678,1716739808174,150.0,8.754e-05,2]
[327982680,1716739808371,150.0,8.754e-05,2]
[327982681,1716739808551,150.0,8.754e-05,2]
[327982682,1716739808724,150.0,8.754e-05,2]
[327982683,1716739808903,150.0,8.754e-05,2]
[327982684,1716739809093,150.0,8.754e-05,2]
[327982685,1716739809277,150.0,8.754e-05,2]
[327982686,1716739809530,150.0,8.754e-05,2]
[327982687,1716739809654,150.0,8.754e-05,2]
[327982688,1716739809841,150.0,8.754e-05,2]
[327982689,1716739810056,150.0,8.754e-05,2]
[327982690,1716739810271,150.0,8.754e-05,2]
[327982691,1716739810480,271.10039038,8.754e-05,2]
[327982692,1716739819791,2750.00207599,8.754e-05,2]
[327982693,1716739819813,5000.0,8.754e-05,2]
[327982694,1716739819835,5000.0,8.754e-05,2]
[327982695,1716739819856,5000.0,8.754e-05,2]
[327982696,1716739819884,5000.0,8.754e-05,2]
[327982697,1716739819905,5000.0,8.754e-05,2]
[327982698,1716739819929,5000.0,8.754e-05,2]
[327982699,1716739819957,8200.0,8.754e-05,2]
[327982711,1716739832190,-6849.98086953,8.753e-05,2]
[327982712,1716739832202,-674.13446714,8.753e-05,2]
[327982713,1716739832211,-4696.44693653,8.754e-05,2]
[327982714,1716739832223,-1360.79649442,8.754e-05,2]
[327982715,1716739832233,-71.89115284,9.195e-05,2]
[327982716,1716739832244,-1906.54770516,9.195e-05,2]
[327982717,1716739832253,-155.0,9.242e-05,2]
[327982718,1716739832263,-20.8607636,9.243e-05,2]
[327982719,1716739832272,-1292.67760267,9.244e-05,2]
[327982720,1716739832281,-150.0,9.251e-05,2]
[327982721,1716739832290,-1174.63410078,9.253e-05,2]
[327982722,1716739832299,-349.99,9.692e-05,2]
[327982723,1716739832308,-946.14141461,9.76e-05,2]
[327982724,1716739832318,-8497.3827826,0.00010277,2]
[327982725,1716739832327,-299.07538621,0.00010277,2]
[327982726,1716739832336,-512.0,0.00010554,2]
[327982727,1716739832345,-157.63,0.00010633,2]
[327982728,1716739832354,-157.63,0.00010688,2]
[327982729,1716739832363,-157.63,0.00010744,2]
[327982730,1716739832375,-157.63,0.00010799,2]
[327982731,1716739832384,-158.9,0.00010849,2]
[327982732,1716739832394,-158.9,0.00010853,2]
[327982733,1716739832403,-157.63,0.00010854,2]
[327982734,1716739832412,-158.9,0.00010858,2]
[327982735,1716739832421,-158.9,0.00010862,2]
[327982736,1716739832430,-158.9,0.00010867,2]
[327982737,1716739832439,-158.9,0.00010871,2]
[327982738,1716739832448,-158.9,0.00010876,2]
[327982739,1716739832457,-37.11814418,0.0001088,2]
[327982740,1716739832469,-121.78185582,0.0001088,2]
[327982741,1716739832479,-158.9,0.00010885,2]
[327982742,1716739832488,-436.08,0.00010886,2]
[327982743,1716739832497,-158.9,0.00010889,2]
[327982744,1716739832506,-158.9,0.00010894,2]
[327982745,1716739832514,-158.9,0.00010898,2]
[327982746,1716739832523,-158.9,0.00010903,2]
[327982747,1716739832533,-157.63,0.0001091,2]
[327982748,1716739832542,-150.0,0.00010959,2]
[327982749,1716739832551,-488.55,0.00010959,2]
[327982750,1716739832560,-157.63,0.00010965,2]
[327982751,1716739832570,-250.0,0.00011017,2]
[327982752,1716739832579,-157.63,0.0001102,2]
[327982753,1716739832587,-157.63,0.00011076,2]
[327982754,1716739832597,-157.63,0.00011131,2]
[327982755,1716739832606,-1216.28,0.00011158,2]
[327982756,1716739832614,-157.63,0.00011187,2]
[327982757,1716739832625,-155.0,0.00011273,2]
[327982758,1716739832634,-898.9576023,0.00011274,2]
[327982759,1716739832645,-818.82444517,0.00011274,2]
[327982760,1716739832656,-555.59877824,0.00011274,2]
[327982761,1716739832666,-387.0989336,0.00011274,2]
[327982762,1716739832677,-637.7,0.00011274,2]
[327982763,1716739832688,-19226.29060395,0.00011274,2]
[327982764,1716739832699,-1066.29448189,0.00011274,2]
[327982765,1716739832709,-279.69657276,0.00011274,2]
[327982766,1716739832720,-29.53858209,0.00011274,2]
[327982767,1716739832729,-1069.29911821,0.00011364,2]
[327982768,1716739832740,-5827.57088179,0.00011364,2]
[327982769,1716739832749,-250.0,0.00011388,2]
[327982770,1716739832766,-931.56320028,0.000115,2]
[327982771,1716739832781,-68.43679972,0.000115,2]
[327982772,1716739832792,-750.94633531,0.00011518,2]
[327982773,1716739832802,-452.09796917,0.00011568,2]
[327982774,1716739832811,-384.0,0.00011583,2]
[327982775,1716739832821,-499.99,0.00011594,2]
[327982776,1716739832830,-945.17,0.0001161,2]
[327982777,1716739832840,-177.55,0.00011822,2]
[327982778,1716739832849,-512.0,0.00011873,2]
[327982779,1716739832859,-349.99,0.00011956,2]
[327982780,1716739832868,-153.02,0.00012085,2]
[327982781,1716739832884,-153.02,0.00012095,2]
[327982782,1716739832894,-153.02,0.00012105,2]
[327982783,1716739832904,-153.02,0.00012115,2]
[327982784,1716739832914,-153.02,0.00012125,2]
[327982785,1716739832923,-153.02,0.00012135,2]
[327982786,1716739832933,-54.47105666,0.00012146,2]
[327982787,1716739832945,-98.54894334,0.00012146,2]
[327982788,1716739832958,-251.45105666,0.000127,2]
[327982789,1716739832970,-2246.56936434,0.000127,2]
[327982805,1716739837728,-4102.716479,0.000127,2]
[327982806,1716739837737,-4881.1369,0.000127,2]
[327982807,1716739837746,-539.6265715,0.000127,2]
[327982808,1716739837757,-284.64,0.000127,2]
[327982809,1716739837894,-714.07480014,0.000127,2]
[327982810,1716739837903,-1538.34137165,0.000127,2]
[327982811,1716739837914,-1268.9229,0.000127,2]
[327982812,1716739837924,-505.36917605,0.00012798,2]
[327982813,1716739837933,-599.27979208,0.00012798,2]
[327982814,1716739837942,-249.77430605,0.00012798,2]
[327982815,1716739837951,-446.83853137,0.00012798,2]
[327982816,1716739837962,-155.79798778,0.00012799,2]
[327982817,1716739837973,-536.24165231,0.00012799,2]
[327982818,1716739837982,-82696.40349619,0.000128,2]
[327982819,1716739837993,-5727.69580381,0.000128,2]
[327982820,1716739838001,-8048.10419619,0.000128,2]
[327982822,1716739838012,-16341.3027603,0.000128,2]
[327982823,1716739838022,-354.63000887,0.000128,2]
[327982824,1716739838033,-1126.71121237,0.000128,2]
[327982874,1716739840070,-1047.1115,0.000128,2]
[327982875,1716739840082,-11491.75396881,0.000128,2]
[327982876,1716739840182,-575.90777618,0.000128,2]
[327982877,1716739840782,-500.0,0.000128,2]
[327982878,1716739840896,-49858.51422358,0.000128,2]
[327982948,1716739842614,-4270.1638074,0.00012545,2]
[327982950,1716739842633,-17634.5361926,0.00012545,2]
[327982951,1716739842642,-95194.5498537,0.000128,2]
[327982952,1716739842651,-1000.0,0.000128,2]
[327982953,1716739842660,-174.64,0.00012801,2]
[327982954,1716739842670,-237.41199557,0.00012868,2]
[327982955,1716739842679,-155.0,0.00012868,2]
[327982956,1716739842688,-3285.77643226,0.00012868,2]
[327982957,1716739842697,-271.53784341,0.00012868,2]
[327982958,1716739842706,-155.64374934,0.00012868,2]
[327982959,1716739842716,-2410.37744843,0.00012868,2]
[327982960,1716739842725,-293.47775329,0.00012869,2]
[327982961,1716739842734,-33027.76802467,0.0001287,2]
[327982962,1716739842744,-3001.79451,0.0001287,2]
[327982963,1716739842753,-322.83500818,0.0001289,2]
[327982964,1716739842762,-179.78792455,0.00012898,2]
[327982965,1716739842772,-179.78792452,0.00012899,2]
[327982966,1716739842781,-179.78792452,0.00012899,2]
[327982968,1716739842790,-179.78792452,0.000129,2]
[327982969,1716739843005,-187.21036864,0.000129,2]
[327982970,1716739843014,-179.78792452,0.000129,2]
[327982971,1716739843024,-2309.61529296,0.000129,2]
[327982972,1716739843034,-2552.92568746,0.000129,2]
[327982973,1716739843043,-223.35950444,0.000129,2]